bitfinex-derivatives/quotes_ETHF0:USTF0_20250405
["timestamp","ask_amount","ask_price","bid_price","bid_amount"]
[1743868721523,2.70472,1782.7,1782.6,1.89611113]
[1743868727625,0.78562,1782.7,1782.6,1.89611113]
[1743868730225,0.78561,1782.8,1782.6,1.89611113]
[1743868730426,0.78561,1782.8,1782.7,4.1208]
[1743868732332,0.78561,1782.8,1782.7,6.2046]
[1743868745237,0.78561,1782.8,1782.7,2.0838]
[1743868745541,2.83001,1782.8,1782.7,2.0838]
[1743868746538,0.78561,1782.8,1782.7,2.0838]
[1743868746840,0.78561,1782.8,1782.7,4.0134]
[1743868749744,3.99341,1782.8,1782.7,4.0134]
[1743868751246,6.04371,1782.8,1782.7,4.0134]
[1743868751845,6.04371,1782.8,1782.7,2.0838]
[1743868756050,3.99341,1782.8,1782.7,2.0838]
[1743868757248,0.78561,1782.8,1782.7,2.0838]
[1743868761053,3.99341,1782.8,1782.7,2.0838]
[1743868761857,5.87551,1782.8,1782.7,2.0838]
[1743868762957,0.78562,1782.7,1782.6,2.06721113]
[1743868763156,4.73062,1782.7,1782.6,2.06721113]
[1743868763657,4.73062,1782.7,1782.6,4.11611113]
[1743868763859,4.73062,1782.7,1782.6,2.05731113]
[1743868769061,4.73062,1782.7,1782.6,4.06751113]
[1743868770361,4.73062,1782.7,1782.6,2.05731113]
[1743868771368,0.78562,1782.7,1782.6,2.05731113]
[1743868772049,4.77342,1782.7,1782.6,2.05731113]
[1743868772253,6.75572,1782.7,1782.6,2.05731113]
[1743868775463,9.96352,1782.7,1782.6,2.05731113]
[1743868776162,6.75572,1782.7,1782.6,2.05731113]
[1743868776364,9.96352,1782.7,1782.6,2.05731113]
[1743868777266,7.98122,1782.7,1782.6,2.05731113]
[1743868780665,4.77342,1782.7,1782.6,2.05731113]
[1743868780971,7.98122,1782.7,1782.6,2.05731113]
[1743868785172,6.01002,1782.7,1782.6,2.05731113]
[1743868787869,21.57698652,1782.8,1782.6,8.22731113]
[1743868788172,21.57698652,1782.8,1782.6,5.72731113]
[1743868788373,22.36255652,1782.8,1782.7,3.90486151]
[1743868789275,0.78557,1782.8,1782.7,3.90486151]
[1743868789477,0.80435972,1782.8,1782.7,3.90486151]
[1743868789977,0.78557,1782.8,1782.7,3.90486151]
[1743868790174,2.76454947,1782.8,1782.7,3.90486151]
[1743868791874,2.78334918,1782.8,1782.7,3.90486151]
[1743868792978,6.73616656,1782.8,1782.7,1.9271]
[1743868794074,6.75498394,1782.8,1782.7,1.9271]
[1743868795178,6.7737837,1782.8,1782.7,1.9271]
[1743868797084,6.79261049,1782.8,1782.7,1.9271]
[1743868797986,6.81143017,1782.8,1782.7,1.9271]
[1743868798789,0.78562,1782.7,1782.6,0.00841113]
[1743868798988,5.96222,1782.7,1782.6,0.00841113]
[1743868799287,6.13149985,1782.7,1782.6,0.00841113]
[1743868800087,6.13149985,1782.7,1782.6,2.08031113]
[1743868800293,5.96222,1782.7,1782.6,2.08031113]
[1743868800508,6.15027117,1782.7,1782.6,2.08031113]
[1743868800985,6.15027117,1782.7,1782.6,4.08091113]
[1743868802379,4.20029093,1782.7,1782.6,4.08091113]
[1743868803487,4.21906233,1782.7,1782.6,4.08091113]
[1743868804789,4.23789347,1782.7,1782.6,4.08091113]
[1743868805685,6.20802461,1782.7,1782.6,4.08091113]
[1743868806190,6.20802461,1782.7,1782.6,2.08031113]
[1743868806578,0.78571,1782.5,1782.4,1.9074]
[1743868806887,0.7858,1782.3,1782.2,1.8954]
[1743868807085,3.9936,1782.3,1782.2,1.8954]
[1743868807390,4.29451291,1782.3,1782.2,1.8954]
[1743868807589,4.29451291,1782.3,1782.2,3.8693]
[1743868809091,4.31333449,1782.3,1782.2,3.8693]
[1743868809493,0.31973449,1782.3,1782.2,6.3693]
[1743868809691,0.33855607,1782.3,1782.2,6.3693]
[1743868810291,0.33855607,1782.3,1782.2,7.15514]
[1743868811393,0.3573375,1782.3,1782.2,6.3693]
[1743868812192,0.3573375,1782.3,1782.2,3.8693]
[1743868812587,1.16191893,1782.3,1782.2,3.8693]
[1743868813691,1.18070039,1782.3,1782.2,3.8693]
[1743868814492,0.41368185,1782.3,1782.2,7.15514]
[1743868815396,0.41368185,1782.3,1782.2,4.65514]
[1743868815695,0.43246331,1782.3,1782.2,4.65514]
[1743868816391,0.45124477,1782.3,1782.2,4.65514]
[1743868835921,0.45124477,1782.3,1782.2,2.75974]
[1743868836112,0.45124477,1782.3,1782.2,6.42674]
[1743868845636,1.8992,1782.6,1782.5,0.78571]
[1743868845830,5.1871,1782.7,1782.6,0.78566]
[1743868846134,3.2078,1782.7,1782.6,4.72446]
[1743868846335,3.2078,1782.7,1782.6,6.72446]
[1743868846631,0.00841112,1782.8,1782.7,0.78562]
[1743868846830,0.00841112,1782.8,1782.7,2.82472]
[1743868849226,0.00841112,1782.8,1782.7,6.03252]
[1743868861035,0.00841112,1782.8,1782.7,9.69752]
[1743868861336,1.88941112,1782.8,1782.7,9.69752]
[1743868861835,3.94561112,1782.8,1782.7,9.69752]
[1743868862139,2.06461112,1782.8,1782.7,9.69752]
[1743868862933,0.00841112,1782.8,1782.7,9.69752]
[1743868864038,1.88701112,1782.8,1782.7,9.69752]
[1743868864236,3.87541112,1782.8,1782.7,9.69752]
[1743868865941,0.00841112,1782.8,1782.7,9.69752]
[1743868871545,1.12e-06,1782.8,1782.7,9.69752]
[1743868874642,27.8252414,1783.7,1783.5,0.78527]
[1743868874643,7.1408,1783.6,1783.5,0.78527]
[1743868875049,9.6408,1783.6,1783.5,0.78527]
[1743868875239,7.1408,1783.6,1783.5,0.78527]
[1743868876445,3.933,1783.6,1783.5,0.78527]
[1743868878662,6.433,1783.6,1783.5,0.78527]
[1743868878951,6.45178356,1783.6,1783.4,4.45670113]
[1743868879153,2.0704,1783.5,1783.4,0.79370113]
[1743868879554,4.5704,1783.5,1783.4,0.79370113]
[1743868879954,4.58918356,1783.5,1783.4,0.79370113]
[1743868882249,2.08918356,1783.5,1783.4,0.79370113]
[1743868886859,2.08918356,1783.5,1783.4,0.00841113]
[1743868887466,4.58918356,1783.5,1783.4,0.00841113]
[1743868888963,5.37445356,1783.5,1783.4,0.00841113]
[1743868891759,2.87445356,1783.5,1783.4,0.00841113]
[1743868897872,6.08225356,1783.5,1783.4,0.00841113]
[1743868902470,6.08225356,1783.5,1783.4,1.88981113]
[1743868902665,4.01185356,1783.5,1783.4,1.88981113]
[1743868902973,0.80405356,1783.5,1783.4,4.67152113]
[1743868903570,0.80405356,1783.5,1783.4,3.88621113]
[1743868909877,3.22658356,1783.5,1783.4,3.88621113]
[1743868910375,4.01185356,1783.5,1783.4,3.88621113]
[1743868911380,3.22658356,1783.5,1783.4,3.88621113]
[1743868911981,3.22658356,1783.5,1783.4,4.67152113]
[1743868915377,3.22658356,1783.5,1783.4,2.67512113]
[1743868915584,4.01185356,1783.5,1783.4,0.00841113]
[1743868915971,7.99595356,1783.5,1783.4,0.00841113]
[1743868926005,7.99595356,1783.5,1783.4,1.92911113]
[1743868927698,7.99595356,1783.5,1783.4,0.00841113]
[1743868928003,7.99595356,1783.5,1782.9,1.9207]
[1743868928004,0.78553,1783.0,1782.9,1.9207]
[1743868928598,0.78557,1782.8,1782.7,39.005]
[1743868928795,0.78557,1782.8,1782.7,35.344]
[1743868928999,0.78562,1782.7,1782.6,5.96431113]
[1743868929201,3.99342,1782.7,1782.6,5.96431113]
[1743868929999,4.01220356,1782.7,1782.6,5.96431113]
[1743868931208,0.7858,1782.3,1782.2,3.66]
[1743868931407,0.7858,1782.3,1782.2,5.675]
[1743868931607,0.7858,1782.3,1782.2,2.015]
[1743868932003,0.80458356,1782.3,1782.2,2.015]
[1743868932599,0.80458356,1782.3,1782.2,3.9691]
[1743868938313,0.01878356,1782.3,1782.2,3.9691]
[1743868938507,0.01878356,1782.3,1782.2,7.25494]
[1743868942814,0.01878356,1782.3,1782.2,4.75494]
[1743868943318,0.01878356,1782.3,1782.2,3.9691]
[1743868943725,0.01878356,1782.3,1782.2,4.75494]
[1743868944920,0.01878356,1782.3,1782.2,3.9691]
[1743868945718,0.80458356,1782.3,1782.2,3.9691]
[1743868946218,2.73258356,1782.3,1782.2,3.9691]
[1743868946817,2.73258356,1782.3,1782.2,1.9541]
[1743868947221,4.44678356,1782.3,1781.4,3.2078]
[1743868947421,3.2078,1781.7,1781.6,1.967]
[1743868947616,3.99386,1781.7,1781.6,1.967]
[1743868947826,0.78613,1781.6,1781.4,4.0065]
[1743868948024,6.03973,1781.6,1781.5,1.94821644]
[1743868951026,5.2536,1781.6,1781.5,1.94821644]
[1743868952017,5.2536,1781.6,1781.5,2.73436644]
[1743868953227,5.2536,1781.6,1781.5,1.94821644]
[1743868953932,6.0397,1781.6,1781.5,1.94821644]
[1743868954227,6.0397,1781.6,1781.4,2.84057113]
[1743868954531,1.898,1781.5,1781.4,4.81627113]
[1743868954830,1.898,1781.5,1781.4,4.03011113]
[1743868955530,2.68415,1781.5,1781.4,0.00841113]
[1743868956125,2.68415,1781.5,1781.4,1.98411113]
[1743868958226,2.68415,1781.5,1781.4,0.00841113]
[1743868959431,4.398,1781.5,1781.1,0.07233]
[1743868959729,3.99408,1781.2,1781.1,0.07233]
[1743868960326,5.88558,1781.2,1781.1,0.07233]
[1743868963234,9.74258,1781.2,1781.1,0.07233]
[1743868963933,0.78632,1781.1,1781.0,0.00841113]
[1743868964128,2.86092,1781.1,1781.0,0.00841113]
[1743868968336,6.06872,1781.1,1781.0,0.00841113]
[1743868974036,3.99412,1781.1,1781.0,0.00841113]
[1743868976443,9.1718,1781.3,1781.2,0.78628]
[1743868976839,9.95805,1781.3,1781.1,4.7071]
[1743868977036,9.95805,1781.3,1781.2,1.968]
[1743868977233,9.95805,1781.3,1781.2,3.8516]
[1743868977637,3.99405,1781.3,1781.2,3.8516]
[1743868977836,3.2078,1781.3,1781.2,4.63788]
[1743868978036,0.78621,1781.4,1781.2,4.63788]
[1743868978340,0.78621,1781.4,1781.3,1.9056]
[1743868982440,0.78619,1781.4,1781.3,1.9056]
[1743868982943,3.99396,1781.5,1781.3,1.9056]
[1743868983442,3.99396,1781.5,1781.4,2.0715]
[1743868983845,3.99396,1781.5,1781.4,4.155]
[1743868985139,3.2078,1781.5,1781.4,4.94119]
[1743868986343,0.00841113,1781.7,1781.6,0.7861]
[1743868986849,0.00841113,1781.7,1781.6,8.8859]
[1743868989047,0.00841113,1781.7,1781.6,12.0937]
[1743868989745,0.00841113,1781.7,1781.6,14.1744]
[1743868989941,3.2078,1782.2,1782.0,0.78592]
[1743868990149,3.2078,1782.2,1782.1,6.0578]
[1743868990450,3.2078,1782.2,1782.1,6.84368]
[1743868991151,0.00841113,1782.3,1782.2,0.78582]
[1743868991846,0.00841113,1782.3,1782.2,4.44682]
[1743869001753,3.2078,1782.6,1782.5,0.78571]
[1743869001958,3.2078,1782.8,1782.7,0.78562]
[1743869002251,1.9144,1783.2,1782.7,4.46406]
[1743869002449,2.078,1783.3,1783.1,0.78544]
[1743869002757,21.9332414,1783.4,1783.3,0.78535]
[1743869003052,21.94165253,1783.4,1783.2,6.79016]
[1743869003248,21.94165253,1783.4,1783.2,6.79017]
[1743869003448,25.14945253,1783.4,1783.0,0.00841113]
[1743869003653,0.78544,1783.1,1783.0,0.00841113]
[1743869004050,2.86344,1783.1,1783.0,0.00841113]
[1743869004452,5.36344,1783.1,1783.0,0.00841113]
[1743869004856,0.78559,1782.8,1782.5,0.78567]
[1743869005153,1.9547,1782.7,1782.5,2.86017]
[1743869005351,1.9547,1782.7,1782.6,1.9777]
[1743869006054,1.9547,1782.7,1782.6,2.76336]
[1743869006249,0.78549,1783.0,1782.7,0.78558]
[1743869006454,3.2078,1783.1,1782.7,5.6367]
[1743869006755,3.2078,1783.1,1782.9,0.78553]
[1743869007255,5.2218,1783.1,1782.9,2.76323]
[1743869007454,5.2218,1783.1,1782.9,1.9777]
[1743869007658,2.0474,1783.2,1783.0,2.76315]
[1743869007953,3.2078,1783.3,1783.2,0.7854]
[1743869008158,0.00841113,1783.4,1783.2,0.7854]
[1743869008358,0.00841113,1783.4,1783.3,2.0267]
[1743869008960,1.92071113,1783.4,1783.3,2.0267]
[1743869009860,2.70602113,1783.4,1783.3,2.0267]
[1743869010255,0.78537,1783.3,1783.1,2.0209]
[1743869010559,0.78541,1783.2,1783.0,6.47018]
[1743869010761,3.8872,1783.1,1783.0,5.6847]
[1743869011163,3.8872,1783.1,1783.0,6.47019]
[1743869012759,3.8872,1783.1,1783.0,5.6847]
[1743869012955,3.8872,1783.1,1783.0,6.47019]
[1743869014563,1.9749,1783.1,1783.0,6.47019]
[1743869016461,3.8767,1783.1,1783.0,6.47019]
[1743869018258,1.9749,1783.1,1783.0,6.47019]
[1743869019059,2.0114,1783.3,1783.2,0.7854]
[1743869019358,0.00841113,1783.4,1783.3,0.78535]
[1743869019867,0.00841113,1783.4,1783.2,4.82057]
[1743869020164,0.00841113,1783.4,1783.3,2.86145]
[1743869024972,0.00841113,1783.4,1783.3,6.51845]
[1743869031475,4.13131113,1783.4,1783.3,5.7331]
[1743869031783,4.91662113,1783.4,1783.2,0.78537]
[1743869031987,7.1633,1783.3,1783.2,0.78537]
[1743869032183,7.94868,1783.3,1783.0,7.64927]
[1743869032477,2.82741,1783.2,1783.0,6.8638]
[1743869032777,2.01139521,1783.1,1783.0,6.8638]
[1743869033075,2.01139521,1783.1,1783.0,3.99329]
[1743869033280,2.01139521,1783.1,1783.0,5.94479]
[1743869033480,0.01189521,1783.1,1783.0,5.94479]
[1743869037687,0.00841113,1783.4,1783.3,0.78535]
[1743869038486,0.00841113,1783.4,1783.3,6.67865]
[1743869043294,3.2078,1783.7,1783.6,0.78522]
[1743869043892,3.2078,1783.7,1783.6,4.69492]
[1743869045285,3.2078,1783.7,1783.6,6.71512]
[1743869050095,3.2078,1783.7,1783.6,2.0204]
[1743869050298,5.2584,1783.7,1783.5,4.44965113]
[1743869050497,4.0388,1783.6,1783.5,4.44965113]
[1743869050888,3.2078,1783.7,1783.6,0.78522]
[1743869051086,3.2078,1783.7,1783.6,6.80672]
[1743869052700,0.00841113,1783.8,1783.7,0.78518]
[1743869052894,0.00841113,1783.8,1783.7,2.81518]
[1743869053398,21.9332414,1784.2,1784.1,0.785]
[1743869054090,21.9332414,1784.2,1784.1,2.8583]
[1743869054684,23.9623414,1784.2,1784.1,2.8583]
[1743869054890,23.9623414,1784.2,1784.0,4.44002]
[1743869055201,5.2369,1784.1,1783.7,4.0263]
[1743869055494,21.9332414,1784.2,1783.7,8.49855]
[1743869055495,3.2078,1783.9,1783.7,8.49855]
[1743869055686,4.0356,1783.8,1783.7,8.49855]
[1743869055890,3.2078,1784.1,1783.9,0.78507]
[1743869056092,6.0711,1784.0,1783.9,0.78507]
[1743869056294,6.0711,1784.0,1783.8,2.0733]
[1743869056598,5.2369,1783.9,1783.7,4.44015]
[1743869056796,2.0291,1783.8,1783.7,4.44015]
[1743869057395,2.0291,1783.8,1783.7,6.33775]
[1743869058900,3.2078,1783.9,1783.8,0.78513]
[1743869059097,3.2078,1783.9,1783.8,4.72203]
[1743869059699,5.25,1783.9,1783.8,3.9369]
[1743869059898,6.03509,1783.9,1783.8,3.9369]
[1743869060098,5.25,1783.9,1783.8,3.9369]
[1743869060302,6.03509,1783.9,1783.8,3.9369]
[1743869060505,0.78515,1783.8,1783.6,36.1282]
[1743869060801,1.9789,1783.7,1783.6,36.1282]
[1743869061205,3.9481,1783.7,1783.6,36.1282]
[1743869061898,0.78522,1783.6,1783.5,0.00841113]
[1743869062201,3.9791,1783.6,1783.5,0.00841113]
[1743869063004,5.21351599,1783.6,1783.5,0.00841113]
[1743869063697,4.42829599,1783.6,1783.5,0.79368113]
[1743869063898,4.42829599,1783.6,1783.5,0.00841113]
[1743869064293,4.42829599,1783.6,1783.5,0.79368113]
[1743869064499,0.44919599,1783.6,1783.5,2.70248113]
[1743869064702,0.44919599,1783.6,1783.5,4.75738113]
[1743869066200,4.1131,1783.8,1783.6,0.7852]
[1743869066392,4.1131,1783.8,1783.6,2.7123]
[1743869066592,4.89823,1783.8,1783.7,1.9271]
[1743869066994,5.2809,1783.9,1783.7,1.9271]
[1743869067193,2.059,1783.8,1783.7,2.71228]
[1743869067403,2.84413,1783.8,1783.7,1.9271]
[1743869067799,1.9152,1784.0,1783.6,5.61804]
[1743869068000,3.2078,1784.1,1783.6,5.61804]
[1743869068001,7.3135,1784.1,1783.9,0.78506]
[1743869068204,7.3135,1784.1,1784.0,1.9271]
[1743869068398,8.0985,1784.1,1784.0,1.9271]
[1743869068705,8.11037517,1784.1,1784.0,1.9271]
[1743869069202,0.78505,1784.0,1783.9,3.654]
[1743869069501,1.8937,1784.0,1783.9,3.654]
[1743869069702,1.90557517,1784.0,1783.9,3.654]
[1743869070099,1.90557517,1784.0,1783.9,4.43909]
[1743869070303,1.90557517,1784.0,1783.9,6.41419]
[1743869070502,1.90557517,1784.0,1783.9,5.6291]
[1743869070902,1.90557517,1784.0,1783.9,6.41419]
[1743869073002,0.01187517,1784.0,1783.9,6.41419]
[1743869075502,0.78509,1783.9,1783.6,0.78521]
[1743869075705,7.1385,1783.8,1783.6,2.80021]
[1743869075901,9.1966,1783.8,1783.6,2.80021]
[1743869076608,0.01187517,1783.7,1783.6,2.80021]
[1743869076810,2.00197517,1783.7,1783.6,2.015]
[1743869077108,2.00197517,1783.7,1783.6,2.80022]
[1743869077605,2.00499481,1783.7,1783.6,2.80022]
[1743869078108,0.01489481,1783.7,1783.6,5.30022]
[1743869078307,0.01489481,1783.7,1783.6,2.80022]
[1743869084108,0.00841113,1784.3,1784.2,0.78496]
[1743869084615,0.00841113,1784.3,1784.2,4.71996]
[1743869084802,0.00841113,1784.3,1784.2,6.63506]
[1743869092318,0.00841113,1784.3,1784.2,12.55306]
[1743869092513,0.00841113,1784.3,1784.2,18.26086]
[1743869093215,0.00841113,1784.3,1784.2,15.76086]
[1743869095214,22.7179214,1784.9,1784.8,0.78469]
[1743869095215,21.9332414,1784.9,1784.8,0.78469]
[1743869095415,21.9332414,1784.9,1784.8,4.43769]
[1743869096224,21.9332414,1784.9,1784.8,6.44879]
[1743869098016,21.9332414,1784.9,1784.8,9.65659]
[1743869098409,9.0834,1785.3,1784.8,5.6641]
[1743869098611,1.9395,1785.2,1785.1,0.78456]
[1743869098810,1.9395,1785.2,1785.1,4.44656]
[1743869100019,1.95816835,1785.2,1785.1,4.44656]
[1743869100314,5.24270835,1785.2,1784.9,0.78462]
[1743869100515,3.2078,1785.1,1785.0,0.78459]
[1743869100716,5.2475,1785.1,1784.9,0.78462]
[1743869100916,5.8919,1785.0,1784.9,0.78462]
[1743869101116,5.91056835,1785.0,1784.9,0.78462]
[1743869101415,5.91056835,1785.0,1784.9,2.77952]
[1743869101818,0.01866835,1785.0,1784.9,2.77952]
[1743869102316,0.01866835,1785.0,1784.9,0.78462]
[1743869102517,0.01866835,1785.0,1784.9,2.77952]
[1743869105012,0.01866835,1785.0,1784.9,6.46152]
[1743869105221,2.00956835,1785.0,1784.9,6.46252]
[1743869105820,2.00956835,1785.0,1784.9,4.46762]
[1743869106209,2.00956835,1785.0,1784.9,6.39102]
[1743869108220,0.01866835,1785.0,1784.9,6.39102]
[1743869119223,0.01866835,1785.0,1784.9,4.46762]
[1743869120429,0.01866835,1785.0,1784.9,6.51842]
[1743869121530,0.01866835,1785.0,1784.9,0.78462]
[1743869121722,10.40890835,1785.0,1784.7,4.46014113]
[1743869121923,3.9944,1784.9,1784.8,0.78469]
[1743869122124,4.01306835,1784.9,1784.8,0.78469]
[1743869122325,6.51306835,1784.9,1784.8,0.78469]
[1743869123332,4.01306835,1784.9,1784.8,0.78469]
[1743869127437,1.98346835,1784.9,1784.8,0.78469]
[1743869127734,1.98346835,1784.9,1784.8,4.69369]
[1743869128936,0.01866835,1784.9,1784.8,6.74759]
[1743869138639,1.95966835,1784.9,1784.8,6.74759]
[1743869138940,1.95966835,1784.9,1784.8,4.69369]
[1743869139242,1.95966835,1784.9,1784.8,2.72849]
[1743869140134,1.95966835,1784.9,1784.7,0.00841113]
[1743869140841,1.95966835,1784.9,1784.7,0.79314113]
[1743869141344,1.941,1784.9,1784.8,0.76602165]
[1743869141642,1.941,1784.9,1784.7,0.00841113]
[1743869142339,1.941,1784.9,1784.8,0.78469]
[1743869143840,1.941,1784.9,1784.8,4.77109]
[1743869144342,7.106,1785.0,1784.9,0.78465]
[1743869144539,5.1408,1785.0,1784.9,2.68765]
[1743869144740,5.1408,1785.0,1784.9,4.64125]
[1743869147547,1.933,1785.0,1784.9,4.64125]
[1743869149041,1.933,1785.0,1784.9,0.78465]
[1743869149241,1.933,1785.0,1784.9,2.78735]
[1743869150348,5.2263,1785.1,1785.0,0.78461]
[1743869150541,5.2263,1785.1,1785.0,2.78731]
[1743869151347,3.2078,1785.3,1785.0,2.0027]
[1743869151541,3.2078,1785.3,1785.2,0.78452]
[1743869151946,3.2078,1785.3,1785.2,4.82922]
[1743869152449,3.2078,1785.3,1785.2,2.0732]
[1743869152649,5.2493,1785.3,1785.1,6.48973]
[1743869152843,5.8531,1785.2,1785.1,6.48973]
[1743869153051,5.8531,1785.2,1785.1,4.43653]
[1743869155455,9.0609,1785.2,1785.1,4.43653]
[1743869156249,5.14,1785.2,1785.1,4.43653]
[1743869156452,25.1410414,1785.4,1785.3,0.78447]
[1743869157447,27.0263414,1785.4,1785.3,0.78447]
[1743869157650,5.0931,1785.4,1785.2,2.69699]
[1743869157853,1.8806,1785.3,1785.2,2.69699]
[1743869160457,1.8806,1785.3,1785.2,1.9125]
[1743869160643,3.823,1785.3,1785.2,1.9125]
[1743869160844,3.823,1785.3,1785.2,2.69702]
[1743869161951,1.8806,1785.3,1785.2,2.69702]
[1743869162256,1.8806,1785.3,1785.2,4.71472]
[1743869165154,5.1856,1785.4,1785.2,4.71472]
[1743869165357,3.2078,1785.4,1785.3,2.86177]
[1743869165654,21.9332414,1785.6,1785.5,0.78439]
[1743869166255,25.1410414,1785.6,1785.5,4.16]
[1743869166453,27.0604414,1785.6,1785.5,4.16]
[1743869166660,29.9280814,1785.6,1785.5,4.16]
[1743869166862,29.9280814,1785.6,1785.5,2.0773]
[1743869167067,29.9280814,1785.6,1785.4,3.651]
[1743869167359,3.9493,1785.5,1785.4,3.651]
[1743869167562,3.9493,1785.5,1785.4,4.43543]
[1743869168962,5.1272,1785.6,1785.5,0.78439]
[1743869169259,5.1272,1785.6,1785.5,3.9938]
[1743869170662,7.1772,1785.6,1785.5,3.9938]
[1743869171053,0.78439,1785.5,1785.4,3.651]
[1743869171250,4.80439,1785.5,1785.4,3.651]
[1743869171455,4.80439,1785.5,1785.2,10.31498]
[1743869171656,5.2578,1785.4,1785.2,10.31498]
[1743869172459,6.04225,1785.4,1785.2,7.5679]
[1743869172760,3.9347,1785.3,1785.2,1.8836]
[1743869172952,4.71917,1785.3,1785.2,1.8836]
[1743869173867,4.71917,1785.3,1785.1,3.651]
[1743869174068,3.8926,1785.2,1785.1,4.43556]
[1743869174261,3.8926,1785.2,1785.1,2.66806]
[1743869174970,3.8926,1785.2,1785.1,1.8835]
[1743869175165,4.67712,1785.2,1785.0,8.49838]
[1743869175365,5.1304,1785.1,1785.0,2.0333]
[1743869175764,5.1304,1785.1,1785.0,3.9168]
[1743869175961,0.78464,1785.0,1784.8,35.313]
[1743869176165,5.1815,1784.9,1784.8,35.313]
[1743869176369,5.1815,1784.9,1784.8,37.3435]
[1743869176570,7.2394,1784.9,1784.8,37.3435]
[1743869178471,7.2394,1784.9,1784.8,38.12819]
[1743869179173,7.2394,1784.9,1784.8,37.3435]
[1743869179375,4.0316,1784.9,1784.8,37.3435]
[1743869179967,3.2078,1785.1,1784.9,0.78464]
[1743869180175,3.99236,1785.1,1785.0,2.0401]
[1743869180373,6.01506,1785.1,1785.0,2.0401]
[1743869180773,5.2305,1785.1,1785.0,2.0401]
[1743869181176,6.01506,1785.1,1785.0,2.0401]
[1743869181378,6.01506,1785.1,1785.0,3.9762]
[1743869181575,5.2305,1785.1,1785.0,4.76081]
[1743869181770,4.0296,1785.2,1785.0,4.76081]
[1743869182076,2.0596,1785.2,1785.1,2.0401]
[1743869182777,2.84412,1785.2,1785.1,2.0401]
[1743869184076,2.0596,1785.2,1785.1,2.0401]
[1743869184277,2.0596,1785.2,1785.1,2.82466]
[1743869184477,3.99231,1785.3,1785.1,2.82466]
[1743869184678,3.99231,1785.3,1785.2,1.9627]
[1743869184876,0.78455,1785.2,1785.0,6.3717]
[1743869185078,3.2078,1785.1,1785.0,4.6834]
[1743869185280,5.2892,1785.1,1785.0,4.6834]
[1743869185479,7.3528,1785.1,1785.0,4.6834]
[1743869185779,8.13736,1785.1,1784.9,4.43564]
[1743869186079,2.0636,1785.0,1784.9,3.651]
[1743869186379,2.0636,1785.0,1784.9,5.7332]
[1743869186579,2.0636,1785.0,1784.9,2.0822]
[1743869187378,2.84821,1785.0,1784.9,2.0822]
[1743869188881,0.78465,1784.9,1784.8,3.651]
[1743869189081,2.77245,1784.9,1784.8,3.651]
[1743869189282,5.98025,1784.9,1784.8,5.7185]
[1743869189482,5.98025,1784.9,1784.8,2.0675]
[1743869189976,0.78469,1784.8,1784.7,0.00841113]
[1743869190175,6.74749,1784.8,1784.7,0.00841113]
[1743869190370,9.24749,1784.8,1784.7,0.00841113]
[1743869194287,6.74749,1784.8,1784.7,0.00841113]
[1743869195287,0.78483,1784.5,1784.4,2.0675]
[1743869195487,0.78487,1784.4,1784.3,2.0369]
[1743869195689,4.65737,1784.4,1784.3,2.0369]
[1743869195887,0.78491,1784.3,1784.2,2.017]
[1743869196086,7.79461,1784.3,1784.2,2.017]
[1743869196691,0.78496,1784.2,1784.1,0.00841113]
[1743869196886,2.67716,1784.2,1784.1,2.02541113]
[1743869197189,2.67716,1784.2,1784.1,0.00841113]
[1743869197378,0.78505,1784.0,1783.9,1.883]
[1743869197582,3.99285,1784.0,1783.9,1.883]
[1743869197783,0.78513,1783.8,1783.7,3.9818]
[1743869197985,3.99293,1783.8,1783.7,1.883]
[1743869198186,0.78523,1783.6,1783.4,2.0749]
[1743869198495,0.78523,1783.6,1783.4,5.9925]
[1743869198789,1.91701113,1783.7,1783.4,5.9925]
[1743869198989,0.78522,1783.6,1783.5,1.883]
[1743869200484,5.98552,1783.6,1783.5,1.883]
[1743869201885,3.2078,1783.6,1783.5,1.883]
[1743869202185,3.99302,1783.6,1783.5,1.883]
[1743869202891,3.2078,1783.6,1783.5,1.883]
[1743869203693,3.99302,1783.6,1783.5,1.883]
[1743869203888,3.2078,1783.6,1783.5,1.883]
[1743869204087,3.99302,1783.6,1783.5,1.883]
[1743869204282,0.79362113,1783.7,1783.5,1.883]
[1743869206094,0.78522,1783.6,1783.5,1.883]
[1743869206594,0.00841113,1783.7,1783.5,1.883]
[1743869207093,0.79359113,1783.7,1783.5,1.883]
[1743869207296,2.85749113,1783.7,1783.5,1.883]
[1743869207492,0.78522,1783.6,1783.5,1.883]
[1743869207692,6.05692,1783.6,1783.5,1.883]
[1743869208090,0.7853,1783.5,1783.3,0.00841113]
[1743869208291,3.2078,1783.4,1783.3,1.98861113]
[1743869211690,3.99306,1783.6,1783.3,2.77396113]
[1743869211886,3.99306,1783.6,1783.4,2.0779]
[1743869212896,0.78527,1783.5,1783.4,2.0779]
[1743869213196,3.99306,1783.6,1783.4,2.0779]
[1743869213397,6.06106,1783.6,1783.4,2.0779]
[1743869213695,0.78527,1783.5,1783.4,2.0779]
[1743869214399,5.2758,1783.6,1783.4,2.0779]
[1743869214991,6.06106,1783.6,1783.4,2.0779]
[1743869215393,0.78527,1783.5,1783.4,2.0779]
[1743869218811,5.2758,1783.6,1783.4,2.0779]
[1743869218812,3.99306,1783.6,1783.4,2.0779]
[1743869219100,3.99306,1783.6,1783.5,1.8845]
[1743869220999,3.99306,1783.6,1783.5,3.8083]
[1743869226303,6.02726,1783.6,1783.5,3.8083]
[1743869227406,3.2078,1783.6,1783.5,4.59357]
[1743869228403,3.2078,1783.6,1783.5,3.8083]
[1743869228600,3.99302,1783.6,1783.5,3.8083]
[1743869228796,3.99302,1783.6,1783.5,5.6974]
[1743869229500,10.10782,1783.6,1783.5,5.6974]
[1743869229701,9.3226,1783.6,1783.3,0.00841113]